Cogmind - Beta 17 @@@ ROGUE MODE // 2026.08.06 @ 09:20:53 Player: Retknock Result: Destroyed by G-47 Trooper with Particle Gun Performance ------------- Evolutions (2) 1000 Regions Visited (3) 600 Robots Destroyed (47) 235 Value Destroyed (1250) 1250 Prototype IDs (0) 0 Alien Tech Used (0) 0 Bonus (0) 0 TOTAL SCORE: 3085 Bonus ------- None Cogmind --------- Core Integrity 0/550 Matter 300/300 Energy 200/200 System Corruption 0% Temperature Cool (9) Movement Walking (360) Ox3 Location -8/Materials Parts ------- > --- POWER (1) -------- Subdweller Power Source > --- PROPULSION (4) --- VSS Leg > --- UTILITY (4) ------ High-capacity Storage Unit Sensor Array Advanced Targeting Computer Core Shielding > --- WEAPON (2) ------- (None) > --- INVENTORY (20) --- Light Ion Engine Subdweller Power Source Subdweller Power Source Light Nuclear Core Light Nuclear Core Aluminum Leg Carbon-fiber Leg Wheel Wheel Compact Wheel Heat Sink Improved Heat Sink Structural Scanner Visual Processing Unit Particle Charger Core Shielding Light Armor Plating System Shield Datajack Mining Laser Peak State ------------ > --- POWER ------------ Subdweller Power Source > --- PROPULSION ------- Aluminum Leg Aluminum Leg VSS Leg VSS Leg > --- UTILITY ---------- High-capacity Storage Unit Sensor Array Particle Charger Core Shielding > --- WEAPON ----------- Heavy Particle Cannon Battle Rifle > --- INVENTORY -------- Light Ion Engine Subdweller Power Source Subdweller Power Source Light Nuclear Core Light Nuclear Core Aluminum Leg Carbon-fiber Leg Wheel Wheel Compact Wheel Heat Sink Improved Heat Sink Structural Scanner Visual Processing Unit Advanced Targeting Computer Core Shielding System Shield Datajack Mining Laser [Rating: 24] Favorites ----------- Power Light Ion Engine Engine Light Ion Engine Propulsion Compact Wheel Leg Aluminum Leg Wheel Compact Wheel Utility High-capacity Storage Unit Device Seismic Detector Storage High-capacity Storage Unit Processor Advanced Targeting Computer Protection Core Shielding Weapon Battle Cannon Energy Gun EM Pulse Gun Energy Cannon Heavy Particle Cannon Ballistic Gun Light Assault Rifle Ballistic Cannon Battle Cannon Special Weapon Mining Laser Build | -11 -10 -10 -8 ------- Run | Yrd Mat Sub Mat Slots Evolved 4 | . . . 4 Power . | . . . . Propulsion 2 | . . . 2 Utility 2 | . . . 2 Weapon . | . . . . Parts Attached 58 | 8 21 10 19 Power 5 | 2 1 1 1 Engine 5 | 2 1 1 1 Core . | . . . . Reactor . | . . . . Propulsion 18 | 2 5 5 6 Treads . | . . . . Leg 9 | 2 1 2 4 Wheel 9 | . 4 3 2 Hover . | . . . . Flight . | . . . . Utility 15 | 2 7 1 5 Device 6 | 1 1 . 4 Storage 4 | 1 3 . . Processor 1 | . . . 1 Hackware . | . . . . Protection 4 | . 3 1 . Artifact . | . . . . Weapon 20 | 2 8 3 7 Energy Gun 7 | . 6 . 1 Energy Cannon 4 | . 1 . 3 Ballistic Gun 5 | 2 . . 3 Ballistic Cannon 3 | . 1 2 . Launcher . | . . . . Special Weapon 1 | . . 1 . Impact Weapon . | . . . . Slashing Weapon . | . . . . Piercing Weapon . | . . . . Special Melee Weapon . | . . . . Unidentified Prototypes . | . . . . Parts Lost 24 | . 4 2 18 Power 2 | . . 1 1 Propulsion 10 | . 2 . 8 Utility 4 | . . . 4 Weapon 8 | . 2 1 5 Highest Loss Streak 10 | . 2 1 10 To Critical Strikes . | . . . . Average Backups 15 | 3 10 19 17 Power 2 | . 1 1 3 Propulsion 2 | 2 2 2 2 Utility 6 | . 4 8 6 Weapon 3 | . 2 5 3 Tool/Special . | . . . . Unused Backups 25 | . 3 6 16 Power 5 | . . . 5 Propulsion 5 | . 1 . 4 Utility 6 | . . . 6 Weapon 8 | . 2 6 . Tool/Special 1 | . . . 1 Average Slot Usage (%) 92 | . 92 99 88 Engine 11 | . 12 13 8 Leg 10 | . 17 . 10 Wheel 15 | . 6 27 16 Device 15 | . 12 13 19 Storage 12 | . 14 14 9 Protection 2 | . 1 . 6 Energy Gun 6 | . 15 2 . Energy Cannon 1 | . 1 . 2 Ballistic Gun 5 | . 7 . 7 Ballistic Cannon 8 | . 1 22 6 Peak Build Rating 24 | 7 9 16 24 Average Rating 11 | 4 7 10 17 On Entrance 6 | . 7 9 10 Avg Prop Armor Cover (%) 4 | . 4 4 . Naked Turns . | . . . . Heaviest Build 60 | 13 49 52 60 Greatest Support 44 | 20 32 40 44 Greatest Overweight (x) 3 | 3 3 3 3 Average Overweight (x) 1 | . 1 1 1 Largest Inventory Capacity 20 | 8 20 20 20 Average Capacity 18 | 7 15 20 20 Most Carried 20 | 6 20 20 20 Average Carried 15 | 3 11 19 17 Final Capacity 20 | 8 20 20 20 Final Carried 20 | 5 20 20 20 Class Distribution -------------------- 87% | Mutant 12% | Scavenger-Mutant Dominant Class ---------------- Mutant | -10/Materials Mutant | -10/Subcaves Mutant | -8/Materials Resources | -11 -10 -10 -8 ----------- Run | Yrd Mat Sub Mat Matter Collected 1512 | 263 245 431 573 Remotely . | . . . . Salvage Created 1386 | 56 283 219 828 Parts 92 | 7 21 16 48 Haulers Intercepted . | . . . . Recyclers Shooed 2 | 1 . . 1 Parts Field Recycled . | . . . . Retrieved Matter . | . . . . Parts Self-Destructed 4 | . . 4 . Prevented . | . . . . Parts Restored . | . . . . Kills | -11 -10 -10 -8 ------- Run | Yrd Mat Sub Mat Combat Hostiles Destroyed 38 | . 10 7 21 Guns 17 | . 9 . 8 Cannons 17 | . 1 7 9 AOE 4 | . . . 4 Classes Destroyed 10 | 1 4 1 4 Worker 3 | . 1 . 2 Builder 2 | . . . 2 Tunneler 3 | 3 . . . Watcher 1 | . 1 . . Swarmer 13 | . 6 . 7 Grunt 13 | . 4 1 8 Brawler 1 | . . . 1 Sentry 4 | . . . 4 Hunter 1 | . . . 1 Subdweller 6 | . . 6 . Best Kill Streak 5 | 2 3 4 5 Combat Bots Only 5 | . 3 4 5 Max Kills in Single Turn 5 | 1 1 1 5 Gunslinging . | . . . . Exploded 4 | . . . 4 Melee . | . . . . Uniques/NPCs Destroyed . | . . . . Combat | -11 -10 -10 -8 -------- Run | Yrd Mat Sub Mat Hostile Shots Fired 274 | . 55 23 196 Missed 64 | . 14 9 41 Hits 210 | . 41 14 155 Melee 2 | . . . 2 Projectile 208 | . 41 14 153 AOE 2 | . 2 . . Critical Strikes 13 | . 1 2 10 Actively Blocked 3 | . . . 3 Damage Taken 3383 | . 707 414 2262 Core 707 | . 66 87 554 Absorbed by Shields . | . . . . Redirected to Shielding 49 | . 2 . 47 Regen/Repaired (Parts) 29 | . 29 . . Core Remaining (%) 69 | 100 . 38 . Volleys Fired 152 | 15 38 26 73 Largest 2 | 2 2 2 2 Hottest 150 | 40 110 100 150 Shots Fired 259 | 30 71 45 113 Gun 176 | 30 69 10 67 Cannon 82 | . 2 34 46 Launcher . | . . . . Special 1 | . . 1 . Kinetic 162 | 30 18 34 80 Thermal 62 | . 30 1 31 Explosive . | . . . . Electromagnetic 35 | . 23 10 2 Robot Hit Streak 18 | 9 10 18 17 Robot Miss Streak 9 | 2 9 2 4 Penetration Max . | . . . . Secondary Targets . | . . . . Shots Hit Robots 176 | 19 37 32 88 Core Hits 72 | 7 16 12 37 Critical Kills 2 | . 1 . 1 Critical Parts Destroyed . | . . . . Critical Strikes 3 | . 2 . 1 Meltdown 1 | . . . 1 Destroy 1 | . 1 . . Corrupt 1 | . 1 . . Melee Attacks . | . . . . Impact . | . . . . Slashing . | . . . . Piercing . | . . . . Sneak Attacks . | . . . . Combat Hostiles . | . . . . Follow-up Attacks . | . . . . Damage Inflicted 2999 | 162 484 505 1848 Guns 1420 | 162 435 78 745 Cannons 1335 | . 17 427 891 Explosions 244 | . 32 . 212 Melee . | . . . . Ramming . | . . . . Kinetic 1648 | 162 62 427 997 Thermal 1119 | . 296 . 823 Explosive . | . . . . Electromagnetic 232 | . 126 78 28 Impact . | . . . . Slashing . | . . . . Piercing . | . . . . Highest Corruption . | . . . . Average Corruption . | . . . . Corruption Purged . | . . . . Corruption Blocked . | . . . . Overload Shots . | . . . . Overflow Damage 27 | . . . 27 Projectiles 13 | . . . 13 Explosions 14 | . . . 14 Melee . | . . . . Knockbacks 7 | . . 7 . Impact . | . . . . Kinetic 6 | . . 6 . Secondary 1 | . . 1 . Self-Inflicted Damage 45 | . . . 45 Shots 1 | . . . 1 Rammed . | . . . . Targets Rammed . | . . . . Kicked . | . . . . Crushed . | . . . . Highest Temperature 512 | . 512 . 261 Average Temperature 118 | . 141 . 98 Received Heat Transfer 1320 | . 162 87 1071 Effects 5 | . 4 . 1 Shutdowns 1 | . 1 . . Energy Bleed 1 | . . . 1 Interference 2 | . 2 . . Short Circuit 1 | . 1 . . Siege Activations . | . . . . Martial Activations . | . . . . Shielding Activations . | . . . . Robots Disrupted . | . . . . Combat Hostiles . | . . . . Robots Corrupted . | . . . . Combat Hostiles . | . . . . Parts Fried . | . . . . Impact Corruptions . | . . . . Robots Melted 1 | . . . 1 Combat Hostiles . | . . . . Parts Melted 5 | . 3 . 2 Heat Transferred 1866 | . 815 . 1051 Parts Sabotaged . | . . . . Parts Stolen . | . . . . Parts Stripped . | . . . . Power Chain Reactions 2 | . 1 . 1 Alert | -11 -10 -10 -8 ------- Run | Yrd Mat Sub Mat Maximum Alert Level 1 | . . . 1 Low Security (%) 94 | 100 100 . 87 Level 1 5 | . . . 12 Level 2 . | . . . . Level 3 . | . . . . Level 4 . | . . . . Level 5 . | . . . . High Security . | . . . . Max Security . | . . . . Peak Influence 290 | 5 55 . 290 Initial . | . . . . Average 35 | 1 14 . 63 Influence Increases 965 | 15 284 20 646 Destroy 0b10 Robot/C 640 | . 200 20 420 Destroy 0b10 Robot/NC 45 | 15 10 . 20 Destroy Leader 142 | . 42 . 100 Successful Hack 6 | . 2 . 4 Destroy Structure 12 | . . . 12 Lose Combat Pursuer 120 | . 30 . 90 Influence Decreases 710 | 15 263 41 391 Entered New Map 11 | . . 11 . Time Decay 498 | 15 226 30 227 Lost Part 201 | . 37 . 164 Squads Dispatched 6 | . 2 . 4 Investigation 2 | . 1 . 1 Extermination . | . . . . Reinforcement 4 | . 1 . 3 Assault . | . . . . Garrison . | . . . . Intercept . | . . . . Searches Triggered . | . . . . Construction Impeded 1 | . . . 1 Haulers Reinforced . | . . . . Active Scanning Responses . | . . . . Cargo Convoy Interrupts . | . . . . Stealth | -11 -10 -10 -8 --------- Run | Yrd Mat Sub Mat Distress Signals 4 | . 1 . 3 Communications Jammed . | . . . . Distress Signals . | . . . . Times Spotted 75 | . 23 10 42 Peak Tracking Total 9 | . 3 4 9 Tactical Retreats 8 | . 2 . 6 ECM-based Alert Blocks 6 | . . . 6 Traps | -11 -10 -10 -8 ------- Run | Yrd Mat Sub Mat Traps Triggered 5 | . 3 2 . Indirectly . | . . . . Trap Hack Attempts . | . . . . Triggered . | . . . . Disarmed . | . . . . Reprogrammed . | . . . . Reused . | . . . . Traps Extracted . | . . . . Installed . | . . . . Triggered . | . . . . Machines | -11 -10 -10 -8 ---------- Run | Yrd Mat Sub Mat Machines Disabled . | . . . . Max in Single Turn . | . . . . Machines Repaired . | . . . . Machines Dismantled . | . . . . Machines Sabotaged . | . . . . Overloaded Fab Kills . | . . . . Hacking | -11 -10 -10 -8 --------- Run | Yrd Mat Sub Mat Machines Accessed 4 | . 2 . 2 Terminals 2 | . 1 . 1 Fabricators . | . . . . Repair Stations 1 | . 1 . . Recycling Units . | . . . . Scanalyzers 1 | . . . 1 Garrison Access . | . . . . Total Hacks 15 | . 6 . 9 Successful 11 | . 3 . 8 Failed 4 | . 3 . 1 Catastrophic 1 | . 1 . . Database Lockouts . | . . . . Manual . | . . . . Terminals 5 | . 4 . 1 Fabricators . | . . . . Repair Stations 2 | . 2 . . Recycling Units . | . . . . Scanalyzers 8 | . . . 8 Garrison Access . | . . . . Terminal Hacks 2 | . 1 . 1 Record 1 | . 1 . . Alert Level 1 | . . . 1 Fabricator Hacks . | . . . . Repair Station Hacks 2 | . 2 . . Scan Component 1 | . 1 . . Repair 1 | . 1 . . Recycling Unit Hacks . | . . . . Scanalyzer 7 | . . . 7 Insert Component 3 | . . . 3 Analyze 2 | . . . 2 Retrieve Study 2 | . . . 2 Garrison Access Hacks . | . . . . Unauthorized Hacks . | . . . . Terminals . | . . . . Fabricators . | . . . . Repair Stations . | . . . . Recycling Units . | . . . . Scanalyzers . | . . . . Garrison Access . | . . . . Data Cores Recovered . | . . . . Used . | . . . . Hacking Detections 2 | . 1 . 1 Full Trace Events 1 | . . . 1 Feedback Events . | . . . . Feedback Blocked . | . . . . Robot Schematics Acquired . | . . . . Robots Built . | . . . . Authchips . | . . . . Time . | . . . . Total Robot Build Rating . | . . . . Part Schematics Acquired 2 | . . . 2 Parts Built . | . . . . Authchips . | . . . . Time . | . . . . Total Part Build Rating . | . . . . Part Studies Acquired 2 | . . . 2 Parts Repaired 1 | . 1 . . Time 26 | . 26 . . Parts Recycled . | . . . . Recycled Matter . | . . . . Retrieved Matter . | . . . . Retrieved Components . | . . . . Parts Scanalyzed 2 | . . . 2 Part Schematics Acquired 2 | . . . 2 Parts Damaged . | . . . . Bothacking | -11 -10 -10 -8 ------------ Run | Yrd Mat Sub Mat Used RIF Installer . | . . . . Robots Hacked . | . . . . Non-combat . | . . . . Combat . | . . . . Robot Hacks Applied . | . . . . Relay Couplers Released . | . . . . Fabnet Peak Effective % . | . . . . Robots Rewired . | . . . . Allies Hacked . | . . . . Hacks Repelled . | . . . . Allies | -11 -10 -10 -8 -------- Run | Yrd Mat Sub Mat Total Allies . | . . . . Largest Group . | . . . . Highest-Rated Group . | . . . . Highest-Rated Ally . | . . . . Total Orders . | . . . . Ally Attacks . | . . . . Total Damage . | . . . . Kills . | . . . . Allies Corrupted . | . . . . Allies Melted . | . . . . Intel | -11 -10 -10 -8 ------- Run | Yrd Mat Sub Mat Active Infowar (turns) 4763 | 17 1921 1428 1397 Sensors 1731 | . 121 540 1070 Traps 201 | . . . 201 Seismic 3605 | 17 1800 888 900 ECM 1027 | . . . 1027 Robot Analysis Total . | . . . . Derelict Logs Recovered 1 | . . 1 . Drone Launches . | . . . . Drone Recoveries . | . . . . Exploration | -11 -10 -10 -8 ------------- Run | Yrd Mat Sub Mat Turns Passed 5481 | 129 2113 1516 1723 Spaces Moved 3030 | 74 1065 1160 731 Core 41 | 41 . . . Treads . | . . . . Legs 938 | 33 714 . 191 Wheels 2051 | . 351 1160 540 Hover . | . . . . Flight . | . . . . Fastest Speed 50 | 50 115 105 98 Average Speed 137 | 93 174 112 126 Slowest Speed 360 | 200 260 145 360 Overloaded Moves . | . . . . Propulsion Burnouts . | . . . . Robots Hopped . | . . . . Potential Cave-ins . | . . . . Cave-ins Triggered . | . . . . Exploration Rate (%) 48 | 4 95 55 38 Regions Visited 3 Branch Regions 1 Pre-discovered Areas . | . . . . Known Exits Taken . | . . . . Unknown Exits Taken 3 | 1 1 1 . Scrap Searched 1 | . . 1 . Spaces Dug . | . . . . Terrain Destroyed 11 | . . . 11 Melee . | . . . . Projectile 8 | . . . 8 AOE 3 | . . . 3 Terrain Rammed . | . . . . Walls Destroyed . | . . . . Machines Disabled . | . . . . Actions | -11 -10 -10 -8 --------- Run | Yrd Mat Sub Mat Total 4095 | 109 1247 1319 1420 Wait 694 | 3 67 85 539 Move 3027 | 73 1064 1159 731 Hop . | . . . . Pick Up 80 | 9 34 14 23 Fast Attach 6 | 3 . . 3 Attach 39 | 4 11 3 21 Detach 4 | . 1 . 3 Swap 55 | 1 19 16 19 Drop 38 | 1 13 16 8 Fire 152 | 15 38 26 73 Melee . | . . . . Ram . | . . . . Kick . | . . . . Crush . | . . . . Escape Stasis . | . . . . Rewire . | . . . . Trap . | . . . . Miscellaneous . | . . . . Route ------- -11/Scrapyard -10/Materials (discovered 5 exits: [*Mat x3] / [*Min] / [*Sub]) -10/Subcaves (discovered 2 exits: *Mat x2) -8/Materials (discovered 2 exits: [*Fac] / [*Sto]) History --------- Turn | Location | Event 10 | -11/Scrapyard | Discovered new exit (range 16) 130 | -11/Scrapyard | Entered Materials 262 | -10/Materials | Discovered new exit (range 13) 309 | -10/Materials | Build established: Mutant 863 | -10/Materials | Discovered new exit (range 4) 1202 | -10/Materials | Repaired EM Pulse Gun 1582 | -10/Materials | Discovered new exit (range 7) 1903 | -10/Materials | Discovered new exit (range 10) 2227 | -10/Materials | Discovered new exit (range 13) 2243 | -10/Materials | Entered Subcaves 2244 | -10/Subcaves | Approached by a straggling Scientist 2245 | -10/Subcaves | Discovered new exit (range 16) 2502 | -10/Subcaves | Shifting Twisted Machinery released Battle Cannon 2562 | -10/Subcaves | A swath of the cavern ceiling suddenly collapsed 2825 | -10/Subcaves | Core integrity fell below 50% 3050 | -10/Subcaves | A swath of the cavern ceiling suddenly collapsed 3136 | -10/Subcaves | Discovered new exit (range 10) 3498 | -10/Subcaves | Learned Materials garrison access intel 3759 | -10/Subcaves | Entered Materials 3759 | -8/Materials | Evolved 4 slots: Propulsion x2, Utility x2 3760 | -8/Materials | Loaded intel: 1 garrison access location 4386 | -8/Materials | Discovered new exit (range 3) 4387 | -8/Materials | Discovered new exit (range 8) 4858 | -8/Materials | Core integrity fell below 50% 4928 | -8/Materials | Lost 10 parts (1p4n3u2w) 5417 | -8/Materials | Core integrity fell below 20% 5440 | -8/Materials | Lost 3 parts (1n2w) 5482 | -8/Materials | Destroyed by G-47 Trooper with Particle Gun Last Messages --------------- 05334_ K-01 Serf collects debris. 05334_ Acquired 22 matter. 05340_ K-01 Serf collects debris. 05356_ K-01 Serf cleans the Terminal. 05360_ K-01 Serf collects debris. 05368_ K-01 Serf cleans the Terminal. 05388_ G-47 Trooper destroyed. 05389_ Battle Rifle destroyed. 05396_ R-06 Scavenger collects Imp. Heat Sink. 05400_ Terminal disabled. 05407_ Lgt. Assault Rifle destroyed. 05409_ Acquired 11 matter. 05409_ Aluminum Leg destroyed. 05412_ W-25 Informer sends out distress signal. 05446_ VSS Leg destroyed. 05453_ K-01 Serf cleans the Terminal. 05466_ Electrolysis Chamber disabled. 05474_ K-01 Serf collects debris. 05476_ Aluminum Leg destroyed. 05477_ K-01 Serf collects debris. Map ----- +----------------------------------------------------+ | " #? """ #??????+ + """ #??????????????????? | | " # """ #??????# # """ #??????????????????? | | # """ #??????# # """ #??????????????????? | | + #??????# ###########???????????????? | | " ########??????# # #???????????????? | | " #?????????????# # !] * #???????????????? | | " #?????????????# # ]] #???????????????? | | #?????????????# + ] #???????????????? | | #?????????????# # """ #???????????????? | | " #??? ????????# # """ #???????????????? | | " #??? ????????# # """ #???????????????? | | " #?? ????????# # ] #???????????????? | | #?? ????###?# ###########???????????????? | | ##? ???#"""## #?????????????????????????? | | ###+#####"Y"## #########?????????????????? | | % ? ??????????? | | ! ??????????? | | r ??????????? | | ###############???????????? | | #######* """ # #???????????????? | | ! !##% """ # """ """ #???????????????? | | ! / ## """ # """ """ #???????????????? | | = # "T" # "" """ #???????????????? | | [ %+ gg #???????????????? | | / %#= # k #???????????????? | | / [!### ###+#+### # @ #???????????????? | | | %#?# #?# # # = ! #???????????????? | | ######?# #?# # ###########???????????????? | | ####### ## """# ################??????????? | | ## """# ?????????? | | ####### ## """# ^ ?????????? | | ??????# ! ## """# ?????????? | | ??????# ## [ ## ##### #####??????????????? | | ??????## ##########/####?? #??????????????????? | | ???????# # # % #??? #??????????????????? | | ???????# # # "T" #????#??????????????????? | | ???????# +??????# #??? #??????????????????? | | ???????# #??????# #?? #??????????????????? | | ???????# #??????# #? #??????????????????? | | ???????? ???????# ## ##?????????????????? | | ???????? ##########/### #######???????????? | | ??????? ??????????? | | ???????? " ??????????? | | ??????? ??????????? | | ???????? ##########+### #######???????????? | | ??????????????????# =% ## ##?????????????????? | | ??????????????????# """ #? #??????????????????? | | ??????????????????#T """ #?? #??????????????????? | | ??????????????????#" """ #??? +??????????????????? | | ??????????????????# #????#??????????????????? | +----------------------------------------------------+ Best States ------------- Heat Dissipation 41 Energy Generation 15 Energy Capacity 250 Matter Stores 300 Matter Capacity 300 Sight Range 16 Robot Scan Range 14 Terrain Scan Density 10 ECM Strength 1 Armor Coverage 150 Core Shielding 20 Evasion (%) 55 Targeting Accuracy 8 Particle Charging 15 Item Schematics ----------------- Mak. Leg | -8/Materials | Scanalyzed Seismic Detector | -8/Materials | Scanalyzed Robot Schematics ------------------ None Fabricated ------------ Nothing Repaired ---------- EM Pulse Gun | 35% | -10/Materials Studied --------- Com. Wheel | -8/Materials | Hacked Wheel | -8/Materials | Hacked Alien Tech Used ----------------- None Achievements -------------- That Tickles Challenges ------------ None Game ------ Seed PointPlatingMantle Manual? 0 Play Time 01:03:47 Cumulative 12.5 hours Start 2026.08.06 @ 08:14:13 End 2026.08.06 @ 09:20:53 Sessions 1 Manual Loads 0 Difficulty Rogue Special Mode None Game No. 15 Rogue 15 Adventurer 0 Explorer 0 Win Type - Total 0 Types 0/0/0/0/0/0/0/0/0/0 Lore% 8 Gallery% 14 Achievement% 10 Wizard Run 0 Options --------- Layout 2 ASCII 0 Keyboard 0 Movement Mouse Keybinds 0 Fullscreen 1 Font 24/Smallcaps Map View 50x44 Zoom Use 0% Tactical HUD 1 Map Filters NONE Filters NONE Steam 1 RUN: ccc02043-e506-40f2-9056-6f1d0c774d8b